bitfinex/quotes_SOLUSD_20250701
["timestamp","ask_amount","ask_price","bid_price","bid_amount"]
[1751406801649,5.46547199,146.83,146.81,0.2]
[1751406801959,3.49833419,146.83,146.81,0.2]
[1751406810060,3.49833419,146.84,146.81,0.2]
[1751406811444,3.49833419,146.84,146.82,0.04077143]
[1751406817172,3.49833419,146.85,146.82,0.04077143]
[1751406819367,29.49833419,146.86,146.82,0.04077143]
[1751406819950,3.49833419,146.86,146.82,0.04077143]
[1751406820157,5.16093419,146.87,146.82,0.04077143]
[1751406820361,3.49833419,146.86,146.82,0.04077143]
[1751406821281,3.49833419,146.85,146.82,0.04077143]
[1751406824679,3.49833419,146.87,146.82,0.04077143]
[1751406825063,3.49833419,146.87,146.82,3.53910562]
[1751406825380,3.49833419,146.89,146.84,3.49833419]
[1751406825582,3.49833419,146.89,146.83,3.49833419]
[1751406825760,3.49833419,146.89,146.82,18.97474343]
[1751406826083,3.49833419,146.9,146.85,3.49833419]
[1751406826380,3.49833419,146.9,146.82,18.97474343]
[1751406826585,3.49833419,146.9,146.85,3.49833419]
[1751406828290,3.49833419,146.91,146.86,3.49833419]
[1751406829981,3.49833419,146.91,146.82,19.116905]
[1751406830187,3.49833419,146.91,146.86,3.49833419]
[1751406832289,3.49833419,146.91,146.87,7.6075]
[1751406832786,29.49833419,146.92,146.87,11.10583419]
[1751406838386,3.49833419,146.92,146.88,3.49833419]
[1751406838692,29.49833419,146.93,146.88,3.49833419]
[1751406842498,3.49833419,146.93,146.88,3.49833419]
[1751406844096,3.49833419,146.94,146.88,3.49833419]
[1751406844498,53.76,146.96,146.88,3.49833419]
[1751406844797,3.49833419,146.94,146.88,3.49833419]
[1751406845600,3.49833419,146.94,146.89,3.49833419]
[1751406850695,3.49833419,146.94,146.87,7.6075]
[1751406851000,3.49833419,146.94,146.89,3.49833419]
[1751406859210,3.49833419,146.94,146.87,7.6075]
[1751406859510,3.49833419,146.94,146.89,3.49833419]
[1751406860908,26.0,146.96,146.89,3.49833419]
[1751406861101,3.49833419,146.94,146.89,3.49833419]
[1751406861709,26.0,146.96,146.89,3.49833419]
[1751406861902,3.49833419,146.94,146.87,7.6075]
[1751406862209,3.49833419,146.94,146.89,3.49833419]
[1751406864208,3.49833419,146.95,146.89,3.49833419]
[1751406866204,3.49833419,146.94,146.89,3.49833419]
[1751406871294,3.49833419,146.95,146.9,3.49833419]
[1751406872201,3.49833419,146.95,146.89,3.49833419]
[1751406872624,3.49833419,146.95,146.9,3.49833419]
[1751406874910,3.49833419,146.96,146.92,8.0149]
[1751406875626,3.59833419,146.97,146.92,11.51323419]
[1751406877021,3.59833419,146.97,146.92,8.0149]
[1751406877201,3.49833419,146.96,146.92,11.51323419]
[1751406878726,0.1,146.97,146.92,11.51323419]
[1751406878727,3.59833419,146.97,146.92,11.51323419]
[1751406879097,3.59833419,146.97,146.93,3.49833419]
[1751406879303,0.1,146.97,146.93,3.49833419]
[1751406879501,0.14216157,146.93,146.83,13.75849935]
[1751406879825,3.49833419,146.85,146.82,0.04077143]
[1751406880200,3.49833419,146.83,146.82,0.04077143]
[1751406880532,3.49833419,146.83,146.78,0.2]
[1751406880693,3.49833419,146.81,146.78,0.2]
[1751406881312,27.88,146.84,146.78,0.2]
[1751406881529,3.49833419,146.82,146.78,0.2]
[1751406881827,33.34659406,146.84,146.79,5.46659406]
[1751406882130,31.46659406,146.87,146.82,5.46659406]
[1751406889826,5.46659406,146.86,146.81,7.08619406]
[1751406890019,5.46659406,146.86,146.82,11.67239406]
[1751406893631,5.46659406,146.86,146.82,6.2058]
[1751406899643,31.46659406,146.87,146.82,6.2058]
[1751406901855,29.49700996,146.87,146.82,6.2058]
[1751406906848,29.49700996,146.87,146.82,9.70280996]
[1751406908860,29.49700996,146.87,146.82,6.2058]
[1751406909844,26.0,146.87,146.82,6.2058]
[1751406910342,29.49700996,146.87,146.82,6.2058]
[1751406913171,29.49700996,146.87,146.82,9.70280996]
[1751406913546,29.49700996,146.87,146.82,6.2058]
[1751406914062,29.49700996,146.87,146.82,9.70280996]
[1751406915672,27.88,146.89,146.82,9.70280996]
[1751406915871,3.49700996,146.87,146.82,9.70280996]
[1751406918369,53.88,146.89,146.82,9.70280996]
[1751406918570,3.49700996,146.88,146.83,3.49700996]
[1751406919063,29.49700996,146.89,146.84,3.49700996]
[1751406919265,3.49700996,146.88,146.84,3.49700996]
[1751406921149,3.49700996,146.88,146.82,13.4058]
[1751406921451,3.49700996,146.88,146.84,3.49700996]
[1751406929979,29.49700996,146.89,146.84,3.49700996]
[1751406931683,3.49700996,146.89,146.84,3.49700996]
[1751406932277,3.49700996,146.89,146.82,13.4058]
[1751406932462,3.49700996,146.89,146.84,3.49700996]
[1751406932668,26.0,146.91,146.82,13.4058]
[1751406932669,32.32263371,146.91,146.82,13.4058]
[1751406932975,3.49700996,146.89,146.84,3.49700996]
[1751406940384,3.49700996,146.88,146.82,13.4058]
[1751406940588,3.49700996,146.86,146.82,13.4058]
[1751406942986,3.49700996,146.85,146.82,13.4058]
[1751406943193,3.49700996,146.84,146.82,7.2]
[1751406944200,3.49700996,146.84,146.82,2.08244262]
[1751406945794,3.49700996,146.85,146.82,2.08244262]
[1751406946790,3.49700996,146.83,146.79,6.2123]
[1751406947401,6.80928912,146.86,146.79,6.2123]
[1751406947699,3.49700996,146.83,146.79,6.2123]
[1751406950100,6.80928912,146.86,146.79,6.2123]
[1751406950295,3.49700996,146.83,146.79,6.2123]
[1751406952206,3.49700996,146.82,146.79,6.2123]
[1751406955416,26.0,146.85,146.79,6.2123]
[1751406955703,3.49700996,146.83,146.79,6.2123]
[1751406957403,3.49700996,146.82,146.79,6.2123]
[1751406963205,3.49700996,146.83,146.79,6.2123]
[1751406963593,26.0,146.84,146.79,6.2123]
[1751406963780,3.49700996,146.83,146.79,6.2123]
[1751406965618,3.49700996,146.82,146.79,6.2123]
[1751406970790,3.49700996,146.83,146.79,9.70930996]
[1751406971111,3.49700996,146.84,146.79,9.70930996]
[1751406971295,29.49700996,146.86,146.82,1.548]
[1751406971502,3.49700996,146.86,146.82,1.548]
[1751406978723,3.49700996,146.86,146.82,5.04500996]
[1751406981703,3.49700996,146.87,146.82,5.04500996]
[1751406985405,3.49700996,146.87,146.83,3.49700996]
[1751406986026,3.49700996,146.88,146.83,3.49700996]
[1751406986233,6.36820662,146.9,146.84,9.98350996]
[1751406986234,3.49700996,146.89,146.84,9.98350996]
[1751406986733,3.49700996,146.89,146.85,3.49700996]
[1751406986913,29.49700996,146.9,146.85,3.49700996]
[1751406988013,3.49700996,146.9,146.85,3.49700996]
[1751406988234,3.49700996,146.9,146.86,3.49700996]
[1751406991134,3.49700996,146.9,146.85,3.49700996]
[1751406993935,3.49700996,146.9,146.86,3.49700996]
[1751406994413,3.49700996,146.9,146.84,6.4865]
[1751406994608,3.49700996,146.9,146.86,3.49700996]
[1751406995945,3.49700996,146.9,146.84,6.4865]
[1751406996235,3.49700996,146.89,146.85,3.49700996]
[1751406997943,3.49700996,146.89,146.84,6.4865]
[1751406998123,3.49700996,146.89,146.85,3.49700996]
[1751406999038,26.0,146.91,146.85,3.49700996]
[1751406999248,3.49700996,146.9,146.85,3.49700996]
[1751406999419,26.0,146.91,146.85,3.49700996]
[1751406999621,3.49700996,146.9,146.85,3.49700996]
[1751406999820,3.49700996,146.9,146.84,6.4865]
[1751407000246,3.49700996,146.9,146.85,3.49700996]
[1751407004245,3.49700996,146.9,146.84,6.4865]
[1751407004544,3.49700996,146.9,146.86,3.49700996]
[1751407015950,3.49700996,146.87,146.82,1.548]
[1751407016157,3.49700996,146.83,146.78,8.2893]
[1751407016354,3.49700996,146.81,146.78,8.2893]
[1751407022053,26.0,146.83,146.78,8.2893]
[1751407022280,29.49700996,146.83,146.79,3.49700996]
[1751407022458,3.49700996,146.83,146.79,3.49700996]
[1751407028737,3.49700996,146.83,146.78,11.78630996]
[1751407030162,18.64964886,146.88,146.78,11.78630996]
[1751407030163,6.36820662,146.89,146.81,29.49700996]
[1751407030368,3.49700996,146.89,146.83,8.0758]
[1751407030539,3.49700996,146.89,146.84,3.49700996]
[1751407030735,3.49700996,146.88,146.83,8.0758]
[1751407031067,3.49700996,146.85,146.81,7.12]
[1751407031458,26.0,146.88,146.81,7.12]
[1751407031459,3.49700996,146.84,146.81,7.12]
[1751407031973,5.46582525,146.84,146.81,7.12]
[1751407035575,5.46582525,146.84,146.79,13.07842525]
[1751407037968,5.46582525,146.84,146.8,5.46582525]
[1751407038840,5.46582525,146.85,146.8,5.46582525]
[1751407040749,5.46582525,146.84,146.8,5.46582525]
[1751407043071,5.46582525,146.84,146.79,13.07842525]
[1751407045975,5.46582525,146.84,146.8,5.46582525]
[1751407050080,26.0,146.86,146.8,5.46582525]
[1751407050264,5.46582525,146.84,146.8,5.46582525]
[1751407051574,5.46582525,146.84,146.79,13.07842525]
[1751407051773,7.12,146.92,146.82,3.49655738]
[1751407052077,3.49655738,146.88,146.83,3.49655738]
[1751407053763,5.46474309,146.85,146.8,24.11439195]
[1751407053977,5.46474309,146.84,146.8,5.46474309]
[1751407054177,5.46474309,146.84,146.79,13.07734309]
[1751407054577,5.46474309,146.84,146.8,5.46474309]
[1751407055184,5.46474309,146.85,146.8,5.46474309]
[1751407055389,5.46474309,146.85,146.79,7.6126]
[1751407055567,5.46474309,146.85,146.8,5.46474309]
[1751407056387,5.46474309,146.84,146.79,13.07734309]
[1751407058479,5.46474309,146.84,146.79,7.6126]
[1751407058687,5.46474309,146.84,146.79,13.07734309]
[1751407071096,5.46474309,146.84,146.79,7.6126]
[1751407071301,5.46474309,146.84,146.79,13.07734309]
[1751407072981,5.46474309,146.84,146.79,7.6126]
[1751407073286,5.46474309,146.83,146.79,7.6126]
[1751407073490,5.46474309,146.82,146.79,7.6126]
[1751407073998,3.49933542,146.82,146.79,7.6126]
[1751407074198,3.49933542,146.81,146.79,7.6126]
[1751407074589,3.49933542,146.81,146.78,0.2]
[1751407079001,0.14216157,146.84,146.78,0.2]
[1751407079206,3.49933542,146.81,146.78,0.2]
[1751407079675,0.14216157,146.84,146.78,0.2]
[1751407079878,3.49933542,146.81,146.78,0.2]
[1751407085315,0.24216157,146.84,146.78,3.69933542]
[1751407085509,3.49933542,146.82,146.78,3.69933542]
[1751407086707,3.49933542,146.82,146.78,0.2]
[1751407095129,3.49933542,146.81,146.78,0.2]
[1751407096127,3.49933542,146.8,146.78,0.2]
[1751407100332,29.49933542,146.79,146.78,0.2]
[1751407100640,43.4966771,146.79,146.78,0.03719329]
[1751407100845,62.28848753,146.79,146.78,0.03719329]
[1751407101439,75.46914731,146.79,146.78,0.0069123]
[1751407102314,69.10094069,146.79,146.78,0.0069123]
[1751407103224,89.57094069,146.79,146.78,0.0069123]
[1751407103438,69.10094069,146.79,146.78,0.0069123]
[1751407106442,6.95554305,146.77,146.76,0.2]
[1751407106615,38.15487847,146.77,146.76,0.2]
[1751407109335,64.15487847,146.77,146.76,0.2]
[1751407112063,82.80452733,146.77,146.76,0.2]
[1751407112264,56.80452733,146.77,146.76,0.2]
[1751407115347,6.36820662,146.8,146.76,0.2]
[1751407115668,29.49933542,146.77,146.76,0.2]
[1751407115959,31.19933542,146.77,146.76,0.2]
[1751407116129,57.19933542,146.77,146.76,0.2]
[1751407120870,29.49933542,146.77,146.76,0.2]
[1751407121156,57.19933542,146.77,146.76,0.2]
[1751407121860,57.34149699,146.77,146.76,0.2]
[1751407122044,64.15487847,146.77,146.76,0.2]
[1751407122462,57.34149699,146.77,146.76,0.2]
[1751407126172,57.19933542,146.77,146.76,0.2]
[1751407126876,57.34149699,146.77,146.76,0.2]
[1751407128586,57.19933542,146.77,146.76,0.2]
[1751407129085,3.49933542,146.78,146.76,0.2]
[1751407129243,3.49933542,146.8,146.76,3.69933542]
[1751407129443,31.19933542,146.8,146.76,3.69933542]
[1751407131375,0.1,146.78,146.76,3.69933542]
[1751407133763,0.1,146.78,146.76,0.2]
[1751407135286,31.31933542,146.78,146.76,0.2]
[1751407135456,3.49933542,146.77,146.76,0.2]
[1751407136271,3.64149699,146.77,146.76,0.2]
[1751407137063,3.49933542,146.77,146.76,0.2]
[1751407139984,5.47147439,146.77,146.76,0.2]
[1751407144766,5.47147439,146.77,146.76,0.03789556]
[1751407148094,31.0766663,146.77,146.76,0.03789556]
[1751407154677,0.14216157,146.76,146.75,0.04730063]
[1751407154879,59.33363596,146.76,146.75,0.04730063]
[1751407161774,57.36500346,146.76,146.75,0.04730063]
[1751407162803,27.72,146.76,146.75,0.04730063]
[1751407163991,29.50284189,146.77,146.75,0.04730063]
[1751407164304,57.22284189,146.77,146.75,0.04730063]
[1751407166900,3.50284189,146.77,146.75,0.04730063]
[1751407167201,31.22284189,146.77,146.75,0.04730063]
[1751407167376,3.50284189,146.77,146.75,0.04730063]
[1751407177430,27.8,146.78,146.75,0.04730063]
[1751407177595,3.50284189,146.77,146.75,0.04730063]
[1751407180717,0.1,146.78,146.75,0.04730063]
[1751407180924,3.60284189,146.78,146.75,0.04730063]
[1751407181299,3.50284189,146.77,146.75,0.04730063]
[1751407185329,0.1,146.78,146.75,0.04730063]
[1751407185522,3.50284189,146.77,146.75,0.04730063]
[1751407187245,0.1,146.78,146.75,0.04730063]
[1751407187412,3.50284189,146.77,146.75,0.04730063]
[1751407187919,0.1,146.78,146.75,0.04730063]
[1751407187920,3.60284189,146.78,146.75,0.04730063]
[1751407188126,0.1,146.78,146.75,0.04730063]
[1751407191029,0.1,146.78,146.76,3.50284189]
[1751407191233,0.1,146.78,146.75,0.04730063]
[1751407191534,0.1,146.78,146.77,3.50284189]
[1751407196541,0.1,146.78,146.75,18.69694949]
[1751407196718,0.1,146.78,146.77,3.50284189]
[1751407197116,0.1,146.78,146.75,18.69694949]
[1751407197430,0.1,146.78,146.77,3.50284189]
[1751407200357,0.1,146.78,146.75,18.69694949]
[1751407200536,3.60284189,146.78,146.75,0.04730063]
[1751407200742,3.50284189,146.77,146.75,0.04730063]
[1751407201071,3.50284189,146.76,146.75,0.04730063]
[1751407201558,3.50284189,146.77,146.75,0.04730063]
[1751407201862,3.50284189,146.76,146.75,0.04730063]
[1751407203123,3.50284189,146.77,146.75,0.04730063]
[1751407203350,3.50284189,146.76,146.75,0.04730063]
[1751407203650,0.14216157,146.77,146.75,0.04730063]
[1751407203841,5.47267071,146.76,146.75,0.04730063]
[1751407204748,34.63300607,146.78,146.75,0.04730063]
[1751407204749,27.82,146.78,146.75,0.04730063]
[1751407204942,5.47267071,146.77,146.75,0.04730063]
[1751407206945,5.47267071,146.76,146.75,0.04730063]
[1751407215545,12.42867801,146.76,146.75,0.04730063]
[1751407215752,5.61483228,146.76,146.75,0.04730063]
[1751407216155,5.61483228,146.76,146.75,0.00917419]
[1751407216458,12.42867801,146.76,146.75,0.00917419]
[1751407217361,5.61483228,146.76,146.75,0.00917419]
[1751407217960,26.0,146.76,146.75,0.00917419]
[1751407218157,31.47267071,146.76,146.75,0.00917419]
[1751407218742,26.0,146.76,146.75,0.00917419]
[1751407219040,31.47267071,146.76,146.75,0.00917419]
[1751407221869,59.23267071,146.76,146.75,0.00917419]
[1751407223577,53.76,146.76,146.75,0.00917419]
[1751407223754,58.45120708,146.76,146.75,0.00917419]
[1751407225769,56.76234618,146.76,146.75,0.00917419]
[1751407227267,29.00234618,146.76,146.75,0.00917419]
[1751407227650,27.76,146.76,146.75,0.00917419]
[1751407227850,3.00234618,146.77,146.75,0.00917419]
[1751407228083,30.76234618,146.77,146.75,0.00917419]
[1751407228555,56.76234618,146.77,146.75,0.00917419]
[1751407230776,56.74234618,146.77,146.75,0.00917419]
[1751407231975,26.0,146.77,146.75,0.00917419]
[1751407232157,0.1,146.78,146.75,3.01152037]
[1751407232350,0.1,146.78,146.76,3.00234618]
[1751407233264,0.1,146.78,146.77,3.00234618]
[1751407233876,0.1,146.78,146.77,4.68674262]
[1751407234467,0.1,146.78,146.77,12.33694262]
[1751407235982,0.1,146.78,146.77,7.6502]
[1751407237283,0.1,146.78,146.75,4.69591681]
[1751407237461,0.1,146.78,146.76,4.68674262]
[1751407246684,0.1,146.78,146.75,0.00917419]
[1751407246685,0.1,146.78,146.77,4.68674262]
[1751407247000,0.1,146.78,146.75,0.00917419]
[1751407247295,0.1,146.78,146.77,4.68674262]
[1751407249894,0.1,146.78,146.75,0.00917419]
[1751407250204,0.1,146.78,146.77,4.68674262]
[1751407251197,0.1,146.78,146.75,0.00917419]
[1751407251399,0.1,146.78,146.77,4.68674262]
[1751407253795,0.1,146.78,146.77,2.9993268]
[1751407254003,0.1,146.78,146.77,21.64897566]
[1751407260308,0.1,146.78,146.77,18.64964886]
[1751407260619,0.1,146.78,146.77,21.64897566]
[1751407261307,0.1,146.78,146.76,7.6257]
[1751407261611,0.1,146.78,146.77,2.9993268]
[1751407263803,0.1,146.78,146.76,7.6257]
[1751407264007,0.1,146.78,146.77,2.9993268]
[1751407279425,0.1,146.78,146.75,0.00917419]
[1751407279828,0.1,146.78,146.77,2.9993268]
[1751407292272,0.1,146.78,146.75,0.00917419]
[1751407292760,2.9993268,146.77,146.75,0.00917419]
[1751407293366,3.0993268,146.78,146.75,0.00917419]
[1751407296540,2.9993268,146.77,146.75,0.00917419]
[1751407297379,0.1,146.78,146.75,0.00917419]
[1751407297380,2.9993268,146.76,146.75,0.00917419]
[1751407297679,28.9993268,146.76,146.75,0.00917419]
[1751407299160,26.0,146.76,146.75,0.00917419]
[1751407299474,28.9993268,146.76,146.75,0.00917419]
[1751407301698,19.63334886,146.75,146.72,0.2]
[1751407301978,47.64897566,146.73,146.72,0.2]
[1751407302876,18.64964886,146.72,146.71,0.2]
[1751407303050,21.64897566,146.72,146.71,0.2]
[1751407303585,47.64897566,146.72,146.71,0.2]
[1751407303747,49.34486789,146.72,146.71,0.2]
[1751407307153,4.8373806,146.72,146.71,0.2]
[1751407307471,27.78,146.72,146.71,0.2]
[1751407308054,12.81891903,146.73,146.71,0.2]
[1751407308370,58.47521903,146.72,146.71,0.2]
[1751407308870,53.78,146.72,146.71,0.2]
[1751407309047,58.47521903,146.72,146.71,0.2]
[1751407310875,77.26702946,146.72,146.71,0.2]
[1751407311958,84.08273284,146.72,146.71,0.2]
[1751407312969,77.26702946,146.72,146.71,0.2]
[1751407313282,58.47521903,146.72,146.71,0.2]
[1751407314952,53.78,146.72,146.71,0.2]
[1751407316273,58.47521903,146.72,146.71,0.2]
[1751407318073,58.6173806,146.72,146.71,0.2]
[1751407325882,77.26702946,146.72,146.71,0.2]
[1751407326275,53.78,146.72,146.71,0.2]
[1751407326588,58.47521903,146.72,146.71,0.2]
[1751407327786,56.78370174,146.72,146.71,0.2]
[1751407328182,26.0,146.72,146.71,0.2]
[1751407328499,0.1,146.78,146.71,3.20370174]
[1751407328702,3.10370174,146.78,146.73,3.00370174]
[1751407328869,26.0,146.76,146.73,3.00370174]
[1751407329070,26.0,146.76,146.71,0.2]
[1751407329071,53.8,146.76,146.71,0.2]
[1751407329271,26.0,146.76,146.73,3.00370174]
[1751407329469,53.8,146.76,146.73,3.00370174]
[1751407329700,0.1,146.78,146.73,3.00370174]
[1751407329866,27.8,146.77,146.73,4.68939314]
[1751407331196,30.78939314,146.78,146.73,4.68939314]
[1751407331382,27.8,146.77,146.71,0.2]
[1751407331571,27.8,146.77,146.73,4.68939314]
[1751407333995,32.48939314,146.77,146.71,0.2]
[1751407334180,32.48939314,146.77,146.72,4.68939314]
[1751407334786,32.48939314,146.77,146.71,0.2]
[1751407334787,4.68939314,146.76,146.71,4.88939314]
[1751407335085,27.78,146.75,146.71,4.88939314]
[1751407335288,27.78,146.75,146.72,4.68939314]
[1751407337179,27.78,146.75,146.73,4.68939314]
[1751407338572,26.1,146.78,146.74,4.68939314]
[1751407338777,53.88,146.78,146.75,4.68939314]
[1751407338972,26.0,146.77,146.75,4.68939314]
[1751407340295,0.1,146.78,146.75,4.68939314]
[1751407341791,0.1,146.78,146.74,4.68939314]
[1751407342008,4.68939314,146.77,146.73,12.41059314]
[1751407342178,4.68939314,146.77,146.73,7.7212]
[1751407342623,4.68939314,146.76,146.73,7.7212]
[1751407342793,4.68939314,146.77,146.73,7.7212]
[1751407343404,4.68939314,146.76,146.73,7.7212]
[1751407344800,32.48939314,146.76,146.73,7.7212]
[1751407345897,32.48939314,146.76,146.71,0.2]
[1751407345898,4.68939314,146.75,146.71,0.2]
[1751407346097,53.8,146.76,146.71,0.2]
[1751407346306,4.68939314,146.75,146.71,0.2]
[1751407348082,4.68939314,146.74,146.71,0.2]
[1751407349291,27.78,146.73,146.71,0.2]
[1751407349697,32.46939314,146.73,146.71,0.2]
[1751407351109,4.68939314,146.72,146.71,0.2]
[1751407353092,36.56020009,146.72,146.68,0.2]
[1751407353412,26.0,146.66,146.65,0.2]
[1751407353586,81.99059671,146.66,146.65,0.2]
[1751407353784,0.14216157,146.64,146.58,6.4272]
[1751407353983,4.68939314,146.61,146.58,6.4272]
[1751407354196,27.86,146.6,146.56,4.68939314]
[1751407355196,26.0,146.68,146.59,12.66489314]
[1751407355396,27.88,146.69,146.65,4.68939314]
[1751407355587,7.18,146.74,146.68,4.68939314]
[1751407355787,4.68939314,146.75,146.71,4.68939314]
[1751407356008,4.68939314,146.77,146.73,4.68939314]
[1751407356311,0.1,146.78,146.72,7.9755]
[1751407356488,4.78939314,146.78,146.74,4.68939314]
[1751407357019,4.68939314,146.76,146.72,7.9755]
[1751407357503,32.64939314,146.77,146.72,12.66489314]
[1751407357710,32.64939314,146.77,146.72,7.9755]
[1751407357894,32.64939314,146.77,146.72,12.66489314]
[1751407358088,4.68939314,146.76,146.72,7.9755]
[1751407358287,27.96,146.77,146.68,7.9755]
[1751407358288,4.68939314,146.73,146.68,7.9755]
[1751407358511,4.68939314,146.72,146.68,12.66489314]
[1751407358706,4.68939314,146.72,146.68,7.9755]
[1751407358908,34.95757877,146.73,146.65,4.68939314]
[1751407359213,4.68939314,146.75,146.7,4.68939314]
[1751407359418,28.0,146.74,146.71,4.68939314]
[1751407360098,28.0,146.74,146.72,4.68939314]
[1751407360319,28.02,146.76,146.73,4.68939314]
[1751407360490,26.0,146.76,146.75,4.68939314]
[1751407360693,0.1,146.78,146.75,4.68939314]
[1751407361220,26.1,146.78,146.74,4.68939314]
[1751407361597,0.1,146.78,146.74,4.68939314]
[1751407361811,0.1,146.78,146.75,4.68939314]
[1751407363002,4.68939314,146.76,146.71,4.68939314]
[1751407363320,28.02,146.75,146.69,8.0922]
[1751407363522,4.68939314,146.73,146.69,8.0922]
[1751407363819,8.04481503,146.73,146.69,8.0922]
[1751407364126,54.02,146.75,146.72,8.04481503]
[1751407364421,8.4866298,146.74,146.72,8.04481503]
[1751407364903,54.02,146.75,146.72,8.04481503]
[1751407365307,26.0,146.75,146.72,8.04481503]
[1751407367800,8.04481503,146.76,146.71,8.04481503]
[1751407370628,28.06,146.77,146.72,8.04481503]
[1751407370931,36.10481503,146.77,146.72,8.04481503]
[1751407371219,28.06,146.77,146.72,8.04481503]
[1751407371430,0.1,146.78,146.76,8.04481503]
[1751407371734,0.1,146.78,146.77,8.04481503]
[1751407372810,0.1,146.78,146.77,26.69446389]
[1751407373035,0.1,146.78,146.76,8.0904]
[1751407373506,8.14481503,146.78,146.76,8.0904]
[1751407373702,0.1,146.78,146.77,26.69446389]
[1751407373903,0.1,146.78,146.77,8.04481503]
[1751407374305,0.1,146.78,146.77,18.64964886]
[1751407374503,0.1,146.78,146.77,26.69446389]
[1751407374733,0.1,146.78,146.77,8.04481503]
[1751407377133,0.1,146.78,146.77,26.69446389]
[1751407377337,0.1,146.78,146.77,27.80228674]
[1751407377513,0.1,146.78,146.77,27.1209486]
[1751407377713,0.1,146.82,146.78,45.07613357]
[1751407377936,0.1,146.82,146.81,34.30576389]
[1751407379041,0.1,146.84,146.83,44.64964886]
[1751407379209,0.1,146.84,146.83,52.69446389]
[1751407379829,0.1,146.88,146.83,53.1209486]
[1751407380030,0.1,146.88,146.87,8.04481503]
[1751407380214,0.1,146.88,146.87,34.30576389]
[1751407380412,0.1,146.88,146.87,7.6113]
[1751407380628,8.14481503,146.88,146.84,8.04481503]
[1751407380934,0.1,146.88,146.87,8.04481503]
[1751407381935,0.1,146.88,146.85,26.68096697]
[1751407382137,0.1,146.88,146.87,8.04481503]
[1751407382521,0.1,146.88,146.87,26.69446389]
[1751407383243,0.1,146.88,146.83,8.1011]
[1751407383428,0.1,146.88,146.86,8.04481503]
[1751407383911,0.1,146.88,146.87,8.04481503]
[1751407384536,0.1,146.88,146.87,34.73927892]
[1751407384713,0.1,146.9,146.89,26.0]
[1751407384916,0.1,146.97,146.92,18.64964886]
[1751407385113,0.1,146.97,146.95,8.04481503]
[1751407385549,0.1,146.97,146.88,8.102]
[1751407385550,34.04481503,146.96,146.88,8.102]
[1751407385717,8.04481503,146.94,146.9,8.04481503]
[1751407385918,8.04481503,146.93,146.89,8.04481503]
[1751407386140,8.04481503,146.94,146.89,8.04481503]
[1751407386450,8.04481503,146.92,146.88,16.14681503]
[1751407387525,8.04481503,146.93,146.89,8.04481503]
[1751407387728,34.04481503,146.94,146.89,8.04481503]
[1751407387943,34.04481503,146.94,146.9,8.04481503]
[1751407388129,34.04481503,146.94,146.89,8.04481503]
[1751407388340,34.04481503,146.94,146.9,8.04481503]
[1751407388341,8.04481503,146.94,146.9,8.04481503]
[1751407388651,0.1,146.97,146.92,8.04481503]
[1751407388944,8.04481503,146.95,146.89,18.64964886]
[1751407389118,8.04481503,146.95,146.91,8.04481503]
[1751407390831,8.04481503,146.96,146.92,8.04481503]
[1751407391049,0.1,146.97,146.89,18.64964886]
[1751407391250,0.1,146.97,146.94,8.04481503]
[1751407391763,8.14481503,146.97,146.93,8.04481503]
[1751407394757,8.04481503,146.96,146.89,18.64964886]
[1751407394954,8.04481503,146.93,146.88,15.522]
[1751407395252,8.04481503,146.93,146.89,8.04481503]
[1751407395457,1.6574,146.96,146.89,8.04481503]
[1751407395654,8.04481503,146.94,146.9,8.04481503]
[1751407395838,34.04481503,146.96,146.91,8.04481503]
[1751407396155,34.04481503,146.96,146.92,8.04481503]
[1751407396655,0.1,146.97,146.93,8.04481503]
[1751407397544,0.1,146.97,146.94,8.04481503]
[1751407397741,0.1,146.97,146.96,8.04481503]
[1751407399029,0.1,146.97,146.96,26.69446389]
[1751407399554,0.1,146.97,146.96,8.04481503]
[1751407400134,0.1,146.97,146.95,8.04481503]
[1751407400332,0.1,146.97,146.96,8.04481503]
[1751407403437,0.1,146.97,146.96,15.70501503]
[1751407406659,0.1,146.97,146.96,7.6602]
[1751407406853,0.1,146.97,146.96,15.70501503]
[1751407408366,0.1,146.97,146.96,8.04481503]